bitfinex-derivatives/quotes_ETHF0:USTF0_20241229
["timestamp","ask_amount","ask_price","bid_price","bid_amount"]
[1735474051779,0.8759,3402.2,3402.1,12.00819]
[1735474053500,3.18059071,3402.2,3402.1,12.00819]
[1735474054589,0.8759,3402.2,3402.1,12.00819]
[1735474058999,0.4308,3402.2,3402.1,12.00819]
[1735474063505,0.4308,3402.2,3402.1,17.00819]
[1735474063701,0.4547,3402.3,3402.2,0.29438]
[1735474066203,2.30400987,3402.4,3402.3,0.29437]
[1735474066610,5.05739847,3402.7,3402.6,0.29434]
[1735474066804,5.05739847,3402.7,3402.6,3.50214]
[1735474067809,5.49900839,3402.7,3402.6,3.50214]
[1735474069404,5.96030839,3402.7,3402.6,3.50214]
[1735474070814,1.34740992,3402.7,3402.6,3.50214]
[1735474072315,0.9058,3402.7,3402.6,3.50214]
[1735474073612,1.34740992,3402.7,3402.6,3.50214]
[1735474075811,1.34740992,3402.7,3402.6,0.29434]
[1735474076209,1.34740992,3402.7,3402.6,3.50214]
[1735474078009,0.90290992,3402.7,3402.6,3.50214]
[1735474078609,5.51936054,3402.7,3402.6,3.50214]
[1735474080211,7.38587253,3402.7,3402.6,3.50214]
[1735474080412,2.76942191,3402.7,3402.6,3.50214]
[1735474081716,2.76942191,3402.7,3402.6,0.29434]
[1735474081921,2.76942191,3402.7,3402.6,3.50214]
[1735474082319,2.26942191,3402.7,3402.6,3.50214]
[1735474083019,0.4439,3402.8,3402.7,0.29433]
[1735474084325,0.88544975,3402.8,3402.7,0.29433]
[1735474085223,0.88544975,3402.8,3402.7,3.50213]
[1735474086023,0.4439,3402.8,3402.7,0.29433]
[1735474086229,0.4439,3402.8,3402.7,3.50213]
[1735474087518,4.61645062,3403.0,3402.9,0.29432]
[1735474087724,4.61645062,3403.0,3402.9,1.44032]
[1735474088325,5.06235062,3403.0,3402.9,1.44032]
[1735474088827,0.88742884,3403.0,3402.9,1.44032]
[1735474094731,0.88742884,3403.0,3402.9,4.64812]
[1735474094931,0.44152884,3403.0,3402.9,4.64812]
[1735474095123,4.61645062,3403.2,3403.1,0.2943]
[1735474095520,7.11672215,3403.4,3403.3,0.29428]
[1735474095725,7.11672215,3403.4,3403.3,3.50208]
[1735474096631,7.11672215,3403.4,3403.3,0.29428]
[1735474096831,7.11672215,3403.4,3403.3,3.50208]
[1735474096832,1.344,3403.4,3403.3,3.50208]
[1735474098429,5.95892442,3403.4,3403.3,3.50208]
[1735474101734,5.49572442,3403.4,3403.3,3.50208]
[1735474105724,0.8808,3403.4,3403.3,3.50208]
[1735474108744,5.49915303,3403.4,3403.3,3.50208]
[1735474109940,0.8808,3403.4,3403.3,3.50208]
[1735474110129,0.8808,3403.4,3403.3,0.85320751]
[1735474110838,0.8808,3403.4,3403.3,1.14748751]
[1735474111537,0.8808,3403.4,3403.3,8.50048751]
[1735474115732,1.3222737,3403.4,3403.3,8.50048751]
[1735474117238,6.87952619,3403.4,3403.3,8.50048751]
[1735474118433,12.65224834,3403.4,3403.3,8.50048751]
[1735474118828,12.21564834,3403.4,3403.3,8.50048751]
[1735474123741,6.44292619,3403.4,3403.3,8.50048751]
[1735474125042,0.8856737,3403.4,3403.3,8.50048751]
[1735474126045,0.8856737,3403.4,3403.3,10.85508]
[1735474126245,6.44292619,3403.4,3403.3,10.85508]
[1735474127343,12.22251507,3403.4,3403.3,10.85508]
[1735474132748,12.22251507,3403.4,3403.3,7.64728]
[1735474133243,12.22251507,3403.4,3403.3,10.85508]
[1735474133844,12.22251507,3403.4,3403.3,7.64728]
[1735474134046,12.22251507,3403.4,3403.3,10.85508]
[1735474136345,12.22251507,3403.4,3403.3,7.64728]
[1735474136746,12.22251507,3403.4,3403.3,10.85508]
[1735474138747,6.44292619,3403.4,3403.3,10.85508]
[1735474143557,6.44292619,3403.4,3403.3,11.99608]
[1735474145057,22.28066413,3403.4,3403.3,11.99608]
[1735474146458,6.44292619,3403.4,3403.3,11.99608]
[1735474152972,12.23239482,3403.4,3403.3,11.99608]
[1735474154669,12.23239482,3403.4,3403.3,8.78828]
[1735474154876,12.23239482,3403.4,3403.3,11.99608]
[1735474158577,6.44292619,3403.4,3403.3,11.99608]
[1735474160881,12.23239482,3403.4,3403.3,11.99608]
[1735474163671,6.44292619,3403.4,3403.3,11.99608]
[1735474164881,12.23239482,3403.4,3403.3,11.99608]
[1735474166078,10.81315339,3403.4,3403.3,11.99608]
[1735474166285,10.31315339,3403.4,3403.3,11.99608]
[1735474166488,4.02608476,3403.4,3403.3,11.99608]
[1735474168089,5.08107792,3403.4,3403.3,11.99608]
[1735474170589,6.24226863,3403.4,3403.3,10.85508]
[1735474170789,6.24226863,3403.4,3403.3,11.99408]
[1735474171089,6.24226863,3403.4,3403.3,9.34538727]
[1735474171289,6.24226863,3403.4,3403.3,9.63966727]
[1735474171590,5.78946863,3403.5,3403.3,9.34538727]
[1735474171790,5.78946863,3403.5,3403.4,0.29427]
[1735474173992,5.78946863,3403.6,3403.3,9.34538727]
[1735474174194,5.78946863,3403.6,3403.5,0.29427]
[1735474176995,5.63038092,3403.6,3403.5,0.29427]
[1735474177497,5.63038092,3403.6,3403.5,1.43327]
[1735474177892,6.09188092,3403.7,3403.6,0.29426]
[1735474178594,6.09188092,3403.7,3403.6,3.50206]
[1735474181899,6.09188092,3403.7,3403.5,0.2265948]
[1735474182196,6.09188092,3403.7,3403.6,7.64626]
[1735474182701,6.09188092,3403.7,3403.6,8.78526]
[1735474182892,6.09188092,3403.7,3403.6,8.491]
[1735474183298,11.09188092,3403.7,3403.6,8.491]
[1735474183799,19.9247212,3403.7,3403.6,2.31014132]
[1735474184095,19.9247212,3403.7,3403.6,1.139]
[1735474184498,14.9247212,3403.7,3403.6,1.139]
[1735474184697,25.30089723,3403.7,3403.6,1.139]
[1735474185088,25.30089723,3403.7,3403.6,1.43326]
[1735474185790,34.52282035,3403.7,3403.6,1.43326]
[1735474186896,32.68062873,3403.7,3403.6,1.43326]
[1735474189305,37.68062873,3403.7,3403.6,1.43326]
[1735474189598,32.68062873,3403.7,3403.6,1.43326]
[1735474193203,16.90956908,3403.7,3403.6,1.43326]
[1735474194202,11.27918816,3403.7,3403.6,1.43326]
[1735474195205,20.11736908,3403.7,3403.6,1.43326]
[1735474196694,18.14534886,3403.7,3403.6,1.43326]
[1735474197104,14.93754886,3403.7,3403.6,1.43326]
[1735474197303,18.14534886,3403.7,3403.6,1.43326]
[1735474198103,14.93754886,3403.7,3403.6,1.43326]
[1735474198293,18.14534886,3403.7,3403.6,1.43326]
[1735474199003,14.93754886,3403.7,3403.6,1.43326]
[1735474199404,18.14534886,3403.7,3403.6,1.43326]
[1735474200909,18.14534886,3403.7,3403.6,1.139]
[1735474201213,18.14534886,3403.7,3403.6,1.43326]
[1735474202304,18.14534886,3403.7,3403.6,0.29426]
[1735474202516,18.14534886,3403.7,3403.6,1.43426]
[1735474203513,18.43959886,3403.7,3403.6,1.14]
[1735474203717,0.29427,3403.5,3403.3,0.29428]
[1735474203910,0.29427,3403.5,3403.4,1.14]
[1735474204110,5.29427,3403.5,3403.4,1.14]
[1735474205417,19.77031886,3403.5,3403.4,1.14]
[1735474205719,0.29429,3403.3,3403.2,0.29429]
[1735474205919,3.50209,3403.3,3403.2,1.43429]
[1735474206322,3.50209,3403.3,3403.2,1.14]
[1735474206621,8.50209,3403.3,3403.2,1.14]
[1735474206921,22.97813886,3403.3,3403.2,1.14]
[1735474207121,0.2943,3403.1,3403.0,7.352]
[1735474207323,0.2943,3403.1,3403.0,8.492]
[1735474207518,5.2943,3403.1,3403.0,8.492]
[1735474208622,32.79638001,3403.1,3403.0,8.492]
[1735474208926,32.79638001,3403.1,3403.0,1.14]
[1735474209116,19.77034886,3403.1,3403.0,1.14]
[1735474209317,19.47604886,3403.1,3402.4,0.8841]
[1735474209516,3.2078,3402.6,3402.5,1.43434]
[1735474209927,3.6497,3402.6,3402.5,1.43434]
[1735474210217,3.94404,3402.6,3402.5,1.43434]
[1735474210521,0.29435,3402.5,3402.4,0.4539]
[1735474210821,0.29435,3402.5,3402.4,1.5939]
[1735474211225,0.29435,3402.5,3402.4,1.14]
[1735474212625,0.29435,3402.5,3402.2,0.4521]
[1735474212626,0.29437,3402.3,3402.2,0.4521]
[1735474212824,0.29437,3402.3,3402.2,1.5921]
[1735474213221,0.29437,3402.3,3402.2,0.4521]
[1735474213424,0.29437,3402.3,3402.2,1.5921]
[1735474213621,12.12557754,3402.3,3402.2,1.5921]
[1735474214221,16.83120754,3402.3,3402.2,1.14]
[1735474214429,16.83120754,3402.3,3401.8,0.4268]
[1735474214628,3.5022,3401.9,3401.8,0.4268]
[1735474214926,3.5022,3401.9,3401.8,1.5668]
[1735474215120,3.5022,3401.9,3401.8,1.14]
[1735474215520,0.29442,3401.7,3401.6,6.09167864]
[1735474215727,0.29442,3401.7,3401.6,7.23167864]
[1735474216128,0.29443,3401.6,3401.5,0.4229]
[1735474216329,0.29443,3401.6,3401.5,1.5629]
[1735474217628,12.11425198,3401.6,3401.5,1.5629]
[1735474218020,17.11425198,3401.6,3401.5,1.5629]
[1735474218223,17.11425198,3401.6,3401.5,1.14]
[1735474219328,5.73594213,3401.6,3401.5,1.14]
[1735474220828,10.32895468,3401.6,3401.5,1.14]
[1735474221421,0.29447,3401.1,3401.0,1.17558]
[1735474221731,3.50227,3401.1,3401.0,2.0211]
[1735474221927,3.50227,3401.1,3401.0,2.31558]
[1735474222430,3.50227,3401.1,3401.0,2.0211]
[1735474223925,3.50227,3401.1,3401.0,1.2981]
[1735474223926,8.50227,3401.1,3401.0,1.2981]
[1735474224132,8.95327,3401.1,3401.0,1.14]
[1735474225630,9.39523494,3401.1,3401.0,1.14]
[1735474227132,20.06846566,3401.1,3401.0,1.14]
[1735474228032,14.61746566,3401.1,3401.0,1.14]
[1735474228235,3.94423494,3401.1,3401.0,1.14]
[1735474229228,3.64976494,3401.1,3401.0,1.43448]
[1735474229433,3.94423494,3401.1,3401.0,1.43448]
[1735474229731,5.94547786,3401.1,3401.0,1.30377052]
[1735474229932,5.24697786,3401.1,3401.0,1.30377052]
[1735474230324,1.8108,3401.1,3401.0,1.30377052]
[1735474232832,3.2078,3401.1,3401.0,1.14]
[1735474233032,3.2078,3401.1,3401.0,1.43448]
[1735474235833,3.50227,3401.1,3401.0,1.43448]
[1735474236831,3.2078,3401.1,3400.5,0.74892]
[1735474237036,3.50227,3401.1,3401.0,1.14]
[1735474237239,0.29452,3400.6,3400.5,0.74892]
[1735474237432,3.2078,3401.1,3400.5,1.88892]
[1735474237635,0.29451,3400.7,3400.5,1.88892]
[1735474238538,0.29451,3400.7,3400.5,1.5944]
[1735474238937,3.2078,3401.1,3400.5,1.5944]
[1735474239433,0.29449,3401.0,3400.7,0.29451]
[1735474240038,3.2078,3401.1,3400.5,1.5944]
[1735474240637,3.2078,3401.1,3400.9,0.29449]
[1735474240834,3.2078,3401.1,3401.0,0.8757]
[1735474241839,3.50227,3401.1,3401.0,0.8757]
[1735474243740,5.79304089,3401.1,3401.0,0.8757]
[1735474244843,3.50227,3401.1,3401.0,0.8757]
[1735474245143,0.29447,3401.1,3401.0,0.8757]
[1735474245442,3.50227,3401.1,3401.0,0.8757]
[1735474245943,0.29447,3401.1,3401.0,0.8757]
[1735474246147,3.50227,3401.1,3401.0,0.8757]
[1735474246346,7.38033716,3401.1,3400.5,1.5944]
[1735474246745,0.29448,3401.0,3400.8,0.29449]
[1735474246946,3.50228,3401.0,3400.8,0.29449]
[1735474247340,3.2078,3401.0,3400.5,1.5944]
[1735474247741,3.2078,3401.0,3400.8,0.29449]
[1735474248348,2.29883007,3400.9,3400.8,0.29449]
[1735474249546,5.50663007,3401.0,3400.8,0.29449]
[1735474250844,2.29883007,3401.0,3400.8,0.29449]
[1735474251045,5.50663007,3401.0,3400.8,0.29449]
[1735474251346,2.29883007,3400.9,3400.8,0.29449]
[1735474252656,0.44187032,3400.9,3400.8,0.29449]
[1735474254157,4.58157048,3400.9,3400.8,0.29449]
[1735474255254,0.44187032,3400.9,3400.8,0.2945]
[1735474256554,5.0234408,3400.9,3400.8,0.2945]
[1735474258559,0.44187032,3400.9,3400.8,0.2945]
[1735474259759,5.74792893,3401.0,3400.9,0.29449]
[1735474259960,1.6815993,3401.0,3400.9,0.29449]
[1735474260265,0.44183616,3401.3,3400.9,5.0]
[1735474260457,6.91863428,3401.4,3401.3,0.29446]
[1735474260658,6.65073428,3401.4,3401.3,1.44146]
[1735474260853,6.65073428,3401.4,3401.3,6.44146]
[1735474261057,6.46779927,3401.4,3401.3,6.44146]
[1735474261361,5.81959927,3401.4,3401.3,6.44146]
[1735474261564,3.46998875,3401.4,3401.3,6.44146]
[1735474263064,2.31198541,3401.5,3401.4,0.29445]
[1735474263457,2.31198541,3401.5,3401.4,5.29445]
[1735474264765,2.31198541,3401.9,3401.4,5.29445]
[1735474264965,2.31198541,3401.9,3401.8,3.50221]
[1735474266468,2.31198541,3402.1,3402.0,0.2944]
[1735474269166,2.31198541,3402.3,3401.8,3.2078]
[1735474269366,2.31198541,3402.3,3402.2,0.29438]
[1735474269671,2.31198541,3402.3,3402.2,1.44138]
[1735474272765,0.4541,3402.4,3402.2,1.44138]
[1735474272766,2.76608541,3402.4,3402.2,1.147]
[1735474273471,2.76608541,3402.4,3402.3,0.29437]
[1735474274968,0.4541,3402.4,3402.3,0.29437]
[1735474277977,2.75238541,3402.5,3402.2,8.503]
[1735474277978,2.75238541,3402.5,3402.4,0.29436]
[1735474278178,0.4404,3402.5,3402.4,0.29436]
[1735474289582,0.79130503,3402.6,3402.5,0.29435]
[1735474289787,0.79130503,3402.6,3402.5,3.50215]
[1735474290876,0.79130503,3402.6,3402.5,0.29435]
[1735474291083,0.79130503,3402.6,3402.5,3.50215]
[1735474295284,0.29130503,3402.6,3402.5,3.50215]
[1735474295880,0.4453,3403.1,3403.0,0.29431]
[1735474296086,0.4453,3403.1,3403.0,1.44331]
[1735474296280,2.75728541,3403.1,3403.0,1.44331]
[1735474299391,4.35684905,3403.1,3403.0,1.44331]
[1735474300395,3.91528875,3403.1,3403.0,1.44331]
[1735474301396,0.8868603,3403.1,3403.0,1.44331]
[1735474302695,0.4453,3403.1,3403.0,1.44331]
[1735474304295,5.51351196,3403.1,3403.0,1.44331]
[1735474305501,6.26022067,3403.1,3403.0,1.44331]
[1735474306399,6.63890236,3403.1,3403.0,1.44331]
[1735474307701,12.01226273,3403.1,3403.0,1.44331]
[1735474313902,6.26022067,3403.1,3403.0,1.44331]
[1735474314497,6.26022067,3403.1,3403.0,1.147]
[1735474314700,6.26022067,3403.1,3403.0,1.44131]
[1735474315100,0.8868603,3403.1,3403.0,1.44131]
[1735474315395,0.8868603,3403.1,3403.0,1.147]
[1735474315905,6.26022067,3403.1,3403.0,1.147]
[1735474316302,6.26022067,3403.1,3403.0,1.44131]
[1735474317104,12.03853442,3403.1,3403.0,1.44131]
[1735474318302,6.26022067,3403.1,3403.0,1.44131]
[1735474320206,0.8868603,3403.1,3403.0,1.44131]
[1735474321505,6.26022067,3403.1,3403.0,1.44131]
[1735474327003,13.16823465,3403.1,3403.0,1.44131]
[1735474328406,22.05537911,3403.1,3403.0,1.44131]
[1735474338623,23.24195439,3403.1,3403.0,1.44131]
[1735474339328,23.24195439,3403.1,3403.0,0.29431]
[1735474339530,23.24195439,3403.1,3403.0,1.44131]
[1735474340127,14.35480993,3403.1,3403.0,1.44131]
[1735474341730,23.24195439,3403.1,3403.0,1.44131]
[1735474347928,15.14736513,3403.1,3403.0,1.44131]
[1735474352944,14.70206513,3403.1,3403.0,1.44131]
[1735474355650,14.70206513,3403.1,3403.0,1.143]
[1735474356352,14.70206513,3403.1,3403.0,1.43731]
[1735474359347,17.90986513,3403.1,3403.0,1.43731]
[1735474360353,26.00445439,3403.1,3403.0,1.43731]
[1735474361846,22.79665439,3403.1,3403.0,1.43731]
[1735474362853,14.70206513,3403.1,3403.0,1.43731]
[1735474364150,22.79665439,3403.1,3403.0,1.43731]
[1735474365058,22.79665439,3403.1,3403.0,1.6746025]
[1735474369958,22.79665439,3403.1,3403.0,1.43731]
[1735474373148,14.70206513,3403.1,3403.0,1.43731]
[1735474374461,5.81492067,3403.1,3403.0,1.43731]
[1735474375558,14.70206513,3403.1,3403.0,1.43731]
[1735474376050,14.70206513,3403.1,3403.0,1.14]
[1735474376560,14.70206513,3403.1,3403.0,1.43431]
[1735474378054,22.81179606,3403.1,3403.0,1.43431]
[1735474378450,22.81179606,3403.1,3403.0,0.29431]
[1735474378655,22.81179606,3403.1,3403.0,1.43431]
[1735474380966,22.81179606,3403.1,3403.0,1.14]
[1735474380967,28.10610606,3403.1,3403.0,1.14]
[1735474381163,22.81179606,3403.1,3403.0,1.14]
[1735474383159,22.81179606,3403.1,3403.0,1.43431]
[1735474385561,13.9246516,3403.1,3403.0,1.43431]
[1735474385764,5.81492067,3403.1,3403.0,1.43431]
[1735474388660,14.2690944,3403.1,3403.0,1.43431]
[1735474390465,5.81492067,3403.1,3403.0,1.43431]
[1735474392174,14.2690944,3403.1,3403.0,1.43431]
[1735474396280,5.81492067,3403.1,3403.0,1.14]
[1735474396474,5.81492067,3403.1,3403.0,1.43431]
[1735474396675,14.2690944,3403.1,3403.0,1.43431]
[1735474397982,17.4768944,3403.1,3403.0,1.43431]
[1735474400677,17.4768944,3403.1,3403.0,0.29431]
[1735474400877,17.4768944,3403.1,3403.0,1.43431]
[1735474401877,17.4768944,3403.1,3402.7,0.29433]
[1735474402075,17.4768944,3403.1,3403.0,1.14]
[1735474402275,17.4768944,3403.1,3402.5,7.354]
[1735474402479,17.7711944,3403.1,3402.6,1.43434]
[1735474403785,3.2078,3402.9,3402.6,1.14]
[1735474403983,0.4402,3402.8,3402.6,1.43434]
[1735474404284,0.8737,3402.8,3402.7,0.29433]
[1735474405883,15.1427944,3402.8,3402.7,0.29433]
[1735474411985,15.1427944,3402.8,3402.7,1.43433]
[1735474413583,6.68862067,3402.8,3402.7,1.43433]
[1735474414791,5.81492067,3402.8,3402.7,1.43433]
[1735474415093,0.4415603,3402.8,3402.7,1.43433]
[1735474415889,6.94261298,3403.0,3402.7,1.14]
[1735474416094,5.37336037,3403.0,3402.9,0.29432]
[1735474420397,11.15813972,3403.0,3402.9,0.29432]
[1735474426786,5.78477935,3403.2,3403.1,0.2943]
[1735474428497,5.52022264,3403.2,3403.1,0.2943]
[1735474430592,11.3024647,3403.2,3403.1,0.2943]
[1735474430796,11.3024647,3403.2,3403.1,1.4343]
[1735474431993,5.52022264,3403.2,3403.1,1.4343]
[1735474433202,0.4364,3403.3,3403.1,1.14]
[1735474433390,0.4364,3403.3,3403.2,0.29429]
[1735474434591,5.95662264,3403.3,3403.2,0.29429]
[1735474436800,6.39812205,3403.3,3403.1,1.30293742]
[1735474437203,6.39812205,3403.3,3403.2,0.29429]
[1735474437904,6.39812205,3403.3,3403.2,1.14]
[1735474438297,6.39812205,3403.3,3403.2,1.43429]
[1735474439705,12.17767622,3403.3,3403.2,1.43429]
[1735474440598,6.39812205,3403.3,3403.2,1.43429]
[1735474442005,0.87789941,3403.3,3403.2,1.43429]
[1735474443209,6.39812205,3403.3,3403.2,1.43429]
[1735474445209,12.17636414,3403.3,3403.2,1.43429]
[1735474449314,6.39812205,3403.3,3403.2,1.43429]
[1735474453017,12.17636414,3403.3,3403.2,1.43429]
[1735474455727,12.17636414,3403.3,3402.9,7.353]
[1735474456023,12.17636414,3403.3,3402.9,7.64731]
[1735474456216,12.47065414,3403.3,3403.0,1.14]
[1735474456415,12.47065414,3403.3,3403.1,1.14]
[1735474456616,12.47065414,3403.3,3403.2,1.14]
[1735474457016,12.47065414,3403.3,3403.2,0.5244]
[1735474457217,0.4364,3403.3,3403.2,0.5244]
[1735474458421,0.87795526,3403.3,3403.2,0.5244]
[1735474458617,14.54325773,3403.3,3403.2,1.14]
[1735474459128,6.4335268,3403.3,3403.2,1.14]
[1735474460926,5.9971268,3403.3,3403.2,1.14]
[1735474461724,14.88604126,3403.3,3403.2,1.14]
[1735474462426,14.88604126,3403.3,3403.1,0.2943]
[1735474462627,14.88604126,3403.3,3403.2,1.14]
[1735474464527,14.88604126,3403.3,3403.2,1.43429]
[1735474465831,22.98427558,3403.3,3403.2,1.43429]
[1735474468130,22.98427558,3403.3,3403.2,42.23429]
[1735474468330,14.88604126,3403.3,3403.2,42.23429]
[1735474469637,21.82644807,3403.3,3403.2,42.23429]
[1735474474732,5.9971268,3403.3,3403.2,42.23429]
[1735474476440,0.44155526,3403.3,3403.2,42.23429]
[1735474477535,5.9971268,3403.3,3403.2,42.23429]
[1735474477835,9.2049268,3403.3,3403.2,42.23429]
[1735474482245,9.2049268,3403.3,3403.2,42.23729]
[1735474484042,25.04268446,3403.3,3403.2,1.143]
[1735474484241,25.04268446,3403.3,3403.2,1.43729]
[1735474484636,16.14533361,3403.3,3403.2,1.43729]
[1735474485139,16.14533361,3403.3,3403.2,42.23729]
[1735474485845,25.04268446,3403.3,3403.2,42.23729]
[1735474487839,25.04268446,3403.3,3403.2,42.43679]
[1735474489136,18.10227765,3403.3,3403.2,42.43679]
[1735474489341,18.10227765,3403.3,3403.2,1.3425]
[1735474489742,18.10227765,3403.3,3403.2,1.63679]
[1735474489942,9.2049268,3403.3,3403.2,1.63679]
[1735474490347,9.2049268,3403.3,3403.2,42.43679]
[1735474491836,9.2049268,3403.3,3403.2,1.63679]
[1735474493850,17.89861754,3403.3,3403.2,1.63679]
[1735474498942,17.89861754,3403.3,3403.2,1.14]
[1735474499345,17.89861754,3403.3,3403.2,41.94]
[1735474499953,17.89861754,3403.3,3403.2,42.23429]
[1735474501654,14.69081754,3403.3,3403.2,42.23429]
[1735474501955,17.89861754,3403.3,3403.2,42.23429]
[1735474504953,25.99685186,3403.3,3403.2,42.23429]
[1735474511060,22.78905186,3403.3,3403.2,42.23429]
[1735474511359,25.99685186,3403.3,3403.2,42.23429]
[1735474512463,17.30316112,3403.3,3403.2,42.23429]
[1735474512863,0.00316112,3403.3,3403.2,42.23429]
[1735474513071,16.17160551,3403.5,3403.4,0.29427]
[1735474513268,16.17160551,3403.5,3403.4,3.50207]
[1735474514081,5.78967225,3403.5,3403.4,3.50207]
[1735474516783,0.4193,3404.0,3403.6,0.29426]
[1735474517575,0.4193,3404.0,3403.5,0.4625]
[1735474517776,7.09078239,3404.1,3403.5,0.4625]
[1735474517977,7.09078239,3404.1,3403.6,0.888]
[1735474518379,7.09078239,3404.1,3403.7,0.29424]
[1735474519381,7.09078239,3404.1,3403.6,0.888]
[1735474519576,7.09078239,3404.1,3403.8,0.29424]
[1735474521475,7.09078239,3404.1,3403.9,1.14]
[1735474521680,0.1411,3404.1,3403.9,1.43423]
[1735474522488,10.15748239,3404.2,3404.0,0.29422]
[1735474524090,10.45169239,3404.2,3404.0,0.29422]
[1735474524586,14.19777976,3404.1,3404.0,0.29422]
[1735474524787,14.19777976,3404.1,3404.0,1.14]
[1735474524989,14.19777976,3404.1,3404.0,1.43422]
[1735474525381,5.46068452,3404.1,3404.0,1.14]
[1735474525579,5.46068452,3404.1,3404.0,1.43422]
[1735474526180,17.40557976,3404.1,3404.0,1.43422]
[1735474526583,14.19777976,3404.1,3404.0,1.43422]
[1735474526784,17.40557976,3404.1,3404.0,1.43422]
[1735474527284,14.19777976,3404.1,3404.0,1.43422]
[1735474527486,17.40557976,3404.1,3404.0,1.43422]
[1735474528695,25.50257504,3404.1,3404.0,1.43422]
[1735474532082,22.29477504,3404.1,3404.0,1.43422]
[1735474532286,25.50257504,3404.1,3404.0,1.43422]
[1735474533294,22.29477504,3404.1,3404.0,1.43422]
[1735474533684,25.50257504,3404.1,3404.0,1.43422]
[1735474534890,17.84704679,3404.1,3404.0,1.43422]
[1735474536287,9.10995155,3404.1,3404.0,1.43422]
[1735474537598,25.94273995,3404.1,3404.0,1.43422]
[1735474538193,25.94488097,3404.1,3404.0,1.43422]
[1735474538697,24.7875012,3404.1,3404.0,1.43422]
[1735474539989,24.7875012,3404.1,3404.0,42.23422]
[1735474540801,21.5797012,3404.1,3404.0,42.23422]
[1735474541003,24.7875012,3404.1,3404.0,42.23422]
[1735474542500,3.71968856,3404.2,3404.1,0.29421]
[1735474542703,3.02138856,3404.2,3404.1,1.16751]
[1735474544003,6.9351817,3404.4,3404.3,0.2942]
[1735474545206,3.2078,3404.5,3404.4,0.29419]
[1735474551708,3.23635579,3404.5,3404.4,0.29419]
[1735474552806,3.2078,3404.5,3404.4,0.29419]
[1735474553012,5.15733498,3404.5,3404.4,0.29419]
[1735474554007,5.19548585,3404.5,3404.4,0.29419]
[1735474555120,5.23363672,3404.5,3404.4,0.29419]
[1735474556314,5.2717776,3404.5,3404.4,0.29419]
[1735474557318,5.30991848,3404.5,3404.4,0.29419]
[1735474558514,5.34805936,3404.5,3404.4,0.29419]
[1735474559817,5.38620024,3404.5,3404.4,0.29419]
[1735474560816,5.38620024,3404.5,3404.4,41.09419]
[1735474561019,5.42434112,3404.5,3404.4,41.09419]
[1735474562209,5.462482,3404.5,3404.4,41.09419]
[1735474563529,5.50070529,3404.5,3404.4,41.09419]
[1735474563815,5.94210318,3404.5,3404.4,41.09419]
[1735474564016,5.94210318,3404.5,3404.4,42.24019]
[1735474564415,5.98032647,3404.5,3404.4,42.24019]
[1735474565220,5.98032647,3404.5,3404.4,1.146]
[1735474565516,5.53202621,3404.5,3404.4,1.146]
[1735474565715,6.01854976,3404.5,3404.4,1.146]
[1735474565916,6.01854976,3404.5,3404.4,1.44019]
[1735474566424,6.01854976,3404.5,3404.4,42.24019]
[1735474566722,6.05677305,3404.5,3404.4,42.24019]
[1735474567223,6.09499634,3404.5,3404.4,42.24019]
[1735474568916,6.13321963,3404.5,3404.4,42.24019]
[1735474570432,6.15011172,3404.5,3404.4,42.24019]
[1735474571932,6.15011172,3404.5,3404.4,40.8]
[1735474572135,6.15011172,3404.5,3404.4,41.946]
[1735474572935,14.07737319,3404.5,3404.4,41.946]
[1735474573236,14.07737319,3404.5,3404.4,42.24019]
[1735474575332,14.07737319,3404.5,3404.4,1.146]
[1735474575533,14.37155319,3404.5,3404.4,1.146]
[1735474576031,13.75346768,3404.5,3404.4,1.146]
[1735474576241,14.40976071,3404.5,3404.4,1.146]
[1735474577240,14.41186371,3404.5,3404.4,1.146]
[1735474578533,14.41186371,3404.5,3404.4,41.946]
[1735474579348,14.41186371,3404.5,3404.4,42.24019]
[1735474580843,14.11768371,3404.5,3404.4,42.24019]
[1735474582851,14.15578677,3404.5,3404.4,42.24019]
[1735474583945,14.15799423,3404.5,3404.4,42.24019]
[1735474585051,23.37991735,3404.5,3404.4,42.24019]
[1735474586552,22.25705406,3404.5,3404.4,42.24019]
[1735474588044,22.25705406,3404.5,3404.4,42.68359]
[1735474589754,22.27041264,3404.5,3404.4,42.68359]
[1735474590153,21.11349638,3404.5,3404.4,42.68359]
[1735474591557,6.24409134,3404.5,3404.4,42.68359]
[1735474593056,1.15346302,3404.5,3404.4,42.68359]
[1735474594058,6.24409134,3404.5,3404.4,42.68359]
[1735474616475,12.02570309,3404.5,3404.4,42.68359]
[1735474616868,12.02570309,3404.5,3404.4,42.95546525]
[1735474617677,12.02570309,3404.5,3404.4,42.68359]
[1735474625180,12.02570309,3404.5,3404.4,45.89139]
[1735474626786,6.633177,3404.5,3404.4,45.89139]
[1735474626982,5.941177,3404.5,3404.4,45.89139]
[1735474627184,5.442777,3404.5,3404.4,45.89139]
[1735474628186,3.92755156,3404.5,3404.4,45.5972]
[1735474628379,3.92755156,3404.5,3404.4,45.89139]
[1735474629586,3.92755156,3404.5,3404.4,45.5972]
[1735474629587,3.46908649,3404.5,3404.4,45.5972]
[1735474629786,3.46908649,3404.5,3404.4,45.89139]
[1735474631187,2.34028649,3404.5,3404.4,45.89139]
[1735474631387,6.94214357,3405.4,3405.3,0.29411]
[1735474631586,6.94214357,3405.4,3405.3,1.43511]
[1735474632088,6.94214357,3405.4,3405.3,42.23511]
[1735474632485,0.02073839,3405.4,3405.3,42.23511]
[1735474633794,0.04025878,3405.4,3405.3,42.23511]
[1735474634595,0.04025878,3405.4,3405.3,45.44291]
[1735474637192,0.04025878,3405.4,3405.3,42.23511]
[1735474638892,4.85582464,3405.4,3405.3,41.09411]
[1735474639193,4.85582464,3405.4,3405.3,1.43411]
[1735474639993,4.87655375,3405.4,3405.3,1.43411]
[1735474641202,4.89608342,3405.4,3405.3,1.43411]
[1735474641498,4.89608342,3405.4,3405.3,0.29411]
[1735474641700,4.89608342,3405.4,3405.3,1.43411]